bitfinex/quotes_ETHUSD_20230902
["timestamp","ask_amount","ask_price","bid_price","bid_amount"]
[1693653164821,2.11281706,1634.4,1634.3,2.02629513]
[1693653167152,1.57067648,1634.4,1634.3,2.02629513]
[1693653167319,1.566,1634.4,1634.3,2.02629513]
[1693653169316,1.566,1634.4,1634.3,0.9633542]
[1693653169655,1.566,1634.4,1634.3,2.02629513]
[1693653169950,2.11249058,1634.4,1634.3,0.9633542]
[1693653170130,2.11249058,1634.4,1634.3,2.02629513]
[1693653170331,2.11716833,1634.4,1634.3,2.02629513]
[1693653170733,1.57067775,1634.4,1634.3,2.02629513]
[1693653171045,2.11718702,1634.4,1634.3,2.02629513]
[1693653176279,2.11718702,1634.4,1634.3,3.3107674]
[1693653179149,1.57067775,1634.4,1634.3,3.3107674]
[1693653179461,2.12151833,1634.4,1634.3,3.3107674]
[1693653180266,0.55551833,1634.4,1634.3,2.3474132]
[1693653180476,1e-08,1634.4,1634.3,2.77386815]
[1693653180965,0.51756472,1634.4,1634.3,2.77386815]
[1693653181263,0.52208881,1634.4,1634.3,2.77386815]
[1693653182671,0.00452409,1634.4,1634.3,2.77386815]
[1693653182993,0.52318442,1634.4,1634.3,2.77386815]
[1693653183707,0.00452409,1634.4,1634.3,2.77386815]
[1693653183889,0.00452409,1634.4,1634.3,6.17615702]
[1693653184205,0.52318442,1634.4,1634.3,6.17615702]
[1693653184365,1.566,1634.8,1634.3,6.17615702]
[1693653184554,1.566,1634.8,1634.6,0.64178563]
[1693653185273,0.00454113,1634.7,1634.6,0.64178563]
[1693653188306,0.52562952,1634.7,1634.6,0.64178563]
[1693653189504,0.52562952,1634.7,1634.6,1.70472656]
[1693653189874,0.52562952,1634.7,1634.6,0.64178563]
[1693653190575,2.09162952,1634.7,1634.6,1.06294093]
[1693653190974,2.09162952,1634.7,1634.5,0.64178563]
[1693653191889,1.566,1634.6,1634.5,0.64178563]
[1693653192409,1.57055705,1634.6,1634.5,0.64178563]
[1693653192783,2.0937633,1634.6,1634.5,0.64178563]
[1693653196215,2.0937633,1634.6,1634.5,1.70472656]
[1693653196417,2.0937633,1634.6,1634.5,0.64178563]
[1693653216706,2.0937633,1634.6,1634.5,1.60446407]
[1693653217111,2.0937633,1634.6,1634.5,1.70472656]
[1693653217585,2.0937633,1634.6,1634.5,0.64178563]
[1693653219305,2.09262338,1634.6,1634.5,0.64178563]
[1693653228190,2.09262338,1634.6,1634.5,2.420717]
[1693653228191,0.52662338,1634.6,1634.5,2.420717]
[1693653234428,0.52662338,1634.6,1634.5,3.70428826]
[1693653235434,0.52662338,1634.6,1634.5,3.70594476]
[1693653244438,0.52662338,1634.6,1634.5,2.42137735]
[1693653244752,0.52662338,1634.6,1634.5,3.70594476]
[1693653245041,0.52662338,1634.6,1634.5,2.42137735]
[1693653245244,0.52662338,1634.6,1634.5,3.70594476]
[1693653246138,0.52662338,1634.6,1634.5,2.42137735]
[1693653246316,0.52662338,1634.6,1634.5,3.70594476]
[1693653246633,0.52662338,1634.6,1634.5,2.42137735]
[1693653246834,0.52662338,1634.6,1634.5,3.70594476]
[1693653247454,0.52662338,1634.6,1634.5,2.42137735]
[1693653248141,0.52662338,1634.6,1634.5,2.02627972]
[1693653248536,0.52662338,1634.6,1634.5,0.96342555]
[1693653249157,2.09262338,1634.6,1634.5,0.96342555]
[1693653269334,2.09262338,1634.6,1634.5,2.66872897]
[1693653269636,2.09262338,1634.6,1634.5,1.6058748]
[1693653271262,2.09262338,1634.6,1634.5,1.60586895]
[1693653271595,2.09262338,1634.6,1634.5,1.60587337]
[1693653272188,2.09262338,1634.6,1634.5,1.60587249]
[1693653272592,2.09262338,1634.6,1634.5,2.02627972]
[1693653272797,2.09262338,1634.6,1634.5,0.96342555]
[1693653281515,0.52662338,1634.6,1634.5,2.24799296]
[1693653281680,0.52662338,1634.6,1634.5,7.03498488]
[1693653282174,0.56172911,1634.6,1634.5,7.14470821]
[1693653282378,1.566,1634.9,1634.5,7.14470821]
[1693653282585,1.566,1634.9,1634.8,0.64215756]
[1693653283122,2.09534463,1634.9,1634.8,0.64215756]
[1693653283321,2.09846079,1634.9,1634.8,0.64215756]
[1693653283525,1.56911616,1634.9,1634.8,0.64215756]
[1693653284127,2.09954829,1634.9,1634.8,0.64215756]
[1693653284626,2.09954829,1634.9,1634.7,2.66824807]
[1693653284828,2.09954829,1634.9,1634.8,1.06285417]
[1693653285287,2.09954829,1634.9,1634.7,2.66824807]
[1693653287726,2.09954829,1634.9,1634.8,1.70501173]
[1693653288518,2.09954829,1634.9,1634.8,0.64215756]
[1693653289719,2.09954829,1634.9,1634.8,1.06285417]
[1693653290190,2.09954829,1634.9,1634.7,2.66824807]
[1693653290710,2.09954829,1634.9,1634.8,1.06285417]
[1693653291106,2.09954829,1634.9,1634.7,2.66824807]
[1693653291308,2.09954829,1634.9,1634.8,1.06285417]
[1693653291509,2.09954829,1634.9,1634.8,1.43596439]
[1693653293740,2.09954829,1634.9,1634.8,1.06285417]
[1693653293917,2.09954829,1634.9,1634.7,1.70501173]
[1693653294108,2.09954829,1634.9,1634.8,1.06285417]
[1693653294301,2.09954829,1634.9,1634.7,1.70501173]
[1693653302838,2.09954829,1634.9,1634.8,1.06271155]
[1693653303521,2.09954829,1634.9,1634.7,1.7036483]
[1693653310358,2.09954829,1634.9,1634.8,1.0626985]
[1693653310668,2.09954829,1634.9,1634.7,1.70367769]
[1693653310867,2.09954829,1634.9,1634.8,1.0626985]
[1693653311164,2.09954829,1634.9,1634.7,1.70367769]
[1693653311368,2.09954829,1634.9,1634.8,1.0626985]
[1693653312566,2.09954829,1634.9,1634.7,1.70367769]
[1693653319588,2.09954829,1634.9,1634.7,2.66514647]
[1693653320583,1.566,1634.8,1634.7,2.66514647]
[1693653320890,2.11377501,1634.8,1634.7,1.0626985]
[1693653321389,2.11687279,1634.8,1634.7,1.0626985]
[1693653321561,2.83459472,1634.8,1634.6,1.8226]
[1693653321761,1.566,1634.7,1634.6,1.8226]
[1693653321955,1.566,1634.7,1634.6,2.88547068]
[1693653322387,1.56906349,1634.7,1634.6,2.88547068]
[1693653327988,2.11982706,1634.7,1634.6,2.88547068]
[1693653328701,2.11982706,1634.7,1634.6,1.06287068]
[1693653328901,2.11982706,1634.7,1634.5,0.64097919]
[1693653329207,4.05932706,1634.7,1634.5,0.64097919]
[1693653331333,1.566,1634.6,1634.5,0.64097919]
[1693653332314,1.57086031,1634.6,1634.5,0.64097919]
[1693653332820,1.57086031,1634.6,1634.4,2.66531865]
[1693653333116,0.00486031,1634.6,1634.5,1.06287068]
[1693653333406,1.566,1634.6,1634.5,1.06287068]
[1693653333607,2.20186429,1634.6,1634.4,2.66531865]
[1693653333821,1.9395,1634.7,1634.5,1.06287068]
[1693653334022,1.566,1634.6,1634.4,1.60244797]
[1693653334312,1.566,1634.5,1634.4,3.11373017]
[1693653336313,1.566,1634.5,1634.4,2.15226139]
[1693653336496,1.566,1634.5,1634.4,3.11373017]
[1693653336994,1.566,1634.5,1634.4,2.15226139]
[1693653340016,1.566,1634.5,1634.4,1.70386076]
[1693653340422,1.566,1634.5,1634.4,0.64097919]
[1693653354402,1.566,1634.5,1634.4,1.60244797]
[1693653358444,1.566,1634.5,1634.4,2.02435035]
[1693653358806,1.566,1634.5,1634.4,0.96146878]
[1693653364363,1.566,1634.5,1634.4,2.24342716]
[1693653365417,1.566,1634.5,1634.4,2.34483995]
[1693653365736,1.566,1634.5,1634.4,1.28195838]
[1693653367343,1.566,1634.5,1634.4,2.88440636]
[1693653376952,1.566,1634.5,1634.4,2.24599899]
[1693653377519,1.566,1634.5,1634.4,2.24588561]
[1693653384658,1.566,1634.5,1634.4,2.0268088]
[1693653384860,1.566,1634.5,1634.4,0.96392723]
[1693653385097,2.22700867,1634.5,1634.4,0.96392723]
[1693653385287,2.23185589,1634.5,1634.4,0.96392723]
[1693653385997,1.57084722,1634.5,1634.4,0.96392723]
[1693653386360,1.566,1634.5,1634.4,0.96392723]
[1693653387099,1.566,1634.5,1634.4,2.0268088]
[1693653387595,1.566,1634.5,1634.4,1.60632993]
[1693653395400,3.132,1634.5,1634.4,1.06288157]
[1693653395576,3.4452,1634.5,1634.4,1.06288157]
[1693653395807,4.12381722,1634.5,1634.3,1.70528427]
[1693653395988,2.55781722,1634.5,1634.4,1.06288157]
[1693653396191,4.12381722,1634.5,1634.4,1.06288157]
[1693653396371,4.12866444,1634.5,1634.3,1.70528427]
[1693653396723,1.566,1634.4,1634.3,1.70528427]
[1693653397423,0.00483943,1634.4,1634.3,0.6424027]
[1693653397571,0.00483943,1634.4,1634.3,3.09359038]
[1693653397771,0.00483943,1634.4,1634.3,2.45118768]
[1693653402747,0.68775448,1634.4,1634.3,2.45118768]
[1693653410627,0.68775448,1634.4,1634.3,2.76921883]
[1693653411572,0.68775448,1634.4,1634.3,3.73218602]
[1693653411786,0.68775448,1634.4,1634.3,2.76921883]
[1693653420303,0.05002192,1634.4,1634.3,9.17156247]
[1693653420456,0.05486389,1634.4,1634.3,7.56911449]
[1693653420668,0.00484197,1634.4,1634.3,7.56911449]
[1693653421094,0.65691826,1634.4,1634.3,9.38841449]
[1693653421588,0.65691826,1634.4,1634.3,7.56911449]
[1693653422108,0.00484197,1634.4,1634.3,7.56911449]
[1693653422511,3.5007,1634.7,1634.3,7.56911449]
[1693653422667,3.5007,1634.7,1634.6,0.64206206]
[1693653423067,2.21940215,1634.7,1634.6,0.64206206]
[1693653423610,2.22409471,1634.7,1634.6,0.64206206]
[1693653426312,2.22409471,1634.7,1634.6,1.70494363]
[1693653426835,2.22409471,1634.7,1634.6,0.64206206]
[1693653430408,2.22409471,1634.7,1634.6,1.06288157]
[1693653430615,2.22409471,1634.7,1634.5,1.70494363]
[1693653430817,2.22409471,1634.7,1634.6,1.06288157]
[1693653431322,2.22409471,1634.7,1634.5,2.66803672]
[1693653431496,2.22409471,1634.7,1634.6,1.06288157]
[1693653431893,2.22409471,1634.7,1634.5,2.66803672]
[1693653432142,2.22409471,1634.7,1634.6,1.06288157]
[1693653432698,2.22409471,1634.7,1634.5,2.66803672]
[1693653434462,2.22409471,1634.7,1634.6,1.06288157]
[1693653434753,2.22409471,1634.7,1634.5,1.70494363]
[1693653435060,2.22409471,1634.7,1634.6,1.06288157]
[1693653435935,2.22409471,1634.7,1634.5,2.66803672]
[1693653436149,2.22409471,1634.7,1634.6,1.06288157]
[1693653436526,2.22409471,1634.7,1634.5,2.66803672]
[1693653436727,2.22409471,1634.7,1634.6,1.06288157]
[1693653437127,2.22409471,1634.7,1634.5,2.66803672]
[1693653438472,2.22409471,1634.7,1634.6,1.06288157]
[1693653438966,2.22409471,1634.7,1634.5,2.66803672]
[1693653439164,2.22409471,1634.7,1634.6,1.06288157]
[1693653439743,2.22409471,1634.7,1634.5,1.70494363]
[1693653440065,2.22409471,1634.7,1634.5,2.66803672]
[1693653443373,0.65809471,1634.7,1634.6,2.02597466]
[1693653443533,0.00469256,1634.7,1634.6,1.70437509]
[1693653443732,0.00469256,1634.7,1634.6,2.02597466]
[1693653444373,1.8613,1634.9,1634.6,2.02597466]
[1693653444589,1.8613,1634.9,1634.7,0.64145069]
[1693653444874,0.66439523,1634.8,1634.7,0.64145069]
[1693653448397,0.668928,1634.8,1634.7,0.64145069]
[1693653465569,0.668928,1634.8,1634.7,0.64186032]
[1693653480212,0.668928,1634.8,1634.7,1.6046508]
[1693653481906,2.234928,1634.8,1634.7,1.6046508]
[1693653484614,2.234928,1634.8,1634.7,0.96279048]
[1693653486366,2.234928,1634.8,1634.7,1.29371663]
[1693653486710,2.234928,1634.8,1634.7,2.35646702]
[1693653490143,2.234928,1634.8,1634.7,0.33092615]
[1693653490316,2.234928,1634.8,1634.7,0.96376716]
[1693653501456,2.234928,1634.8,1634.7,2.24879005]
[1693653521177,0.668928,1634.8,1634.7,2.34776139]
[1693653521854,2.234928,1634.8,1634.7,2.34776139]
[1693653522089,2.234928,1634.8,1634.7,1.28502289]
[1693653522795,2.234928,1634.8,1634.7,2.24874956]
[1693653523991,2.234928,1634.8,1634.7,2.34776139]
[1693653524385,2.234928,1634.8,1634.7,1.28502289]
[1693653524581,2.234928,1634.8,1634.7,2.24874281]
[1693653526762,2.6445508,1634.8,1634.7,2.02647284]
[1693653527000,2.96597545,1634.8,1634.7,1.0627385]
[1693653527506,2.96597545,1634.8,1634.6,0.64253088]
[1693653527706,1.566,1634.7,1634.5,1.60626522]
[1693653528011,1.566,1634.6,1634.5,0.96373434]
[1693653528168,2.2850759,1634.6,1634.5,2.02660726]
[1693653528367,2.28959585,1634.6,1634.5,2.02660726]
[1693653528573,1.57051995,1634.6,1634.5,2.66875642]
[1693653529469,1.57051995,1634.6,1634.5,1.70502208]
[1693653529667,2.29068335,1634.6,1634.5,1.70502208]
[1693653532116,1.57051995,1634.6,1634.5,1.70502208]
[1693653532414,1.566,1634.6,1634.5,1.70502208]
[1693653533191,2.28726795,1634.6,1634.5,1.70502208]
[1693653533503,2.29179045,1634.6,1634.5,1.70502208]
[1693653541486,2.29179045,1634.6,1634.5,0.64214916]
[1693653541686,2.29179045,1634.6,1634.5,2.11835067]
[1693653542427,1.566,1634.6,1634.5,2.11835067]
[1693653544529,1.566,1634.6,1634.5,1.70502208]
[1693653546236,1.566,1634.6,1634.5,2.66875642]
[1693653546599,1.8808,1634.7,1634.5,2.66875642]
[1693653546805,1.566,1634.8,1634.6,1.70434896]
[1693653547130,2.2950144,1634.7,1634.6,0.64147604]
[1693653547699,1.566,1634.7,1634.6,0.64147604]
[1693653549327,2.29613485,1634.7,1634.6,0.64147604]
[1693653549528,2.30066789,1634.7,1634.6,0.64147604]
[1693653549702,2.30066789,1634.7,1634.6,1.06279302]
[1693653549907,2.30066789,1634.7,1634.5,1.70426906]
[1693653554812,2.30066789,1634.7,1634.6,1.06279302]
[1693653555142,2.30066789,1634.7,1634.5,2.6680034]
[1693653556044,2.30066789,1634.7,1634.6,1.70426906]
[1693653556406,2.29613485,1634.7,1634.6,0.64147604]
[1693653560162,2.29613485,1634.7,1634.6,1.06279302]
[1693653560455,0.73013485,1634.7,1634.6,0.64147604]
[1693653560858,0.73013485,1634.7,1634.6,1.60521038]
[1693653561055,1.566,1634.8,1634.6,2.00051301]
[1693653561264,1.566,1634.8,1634.7,1.70426906]
[1693653565526,1.5703631,1634.8,1634.7,1.70426906]
[1693653567239,0.0043631,1634.8,1634.7,1.70426906]
[1693653568129,0.74491959,1634.8,1634.7,1.70426906]
[1693653568462,0.74491959,1634.8,1634.7,2.13910195]
[1693653570930,0.74491959,1634.8,1634.7,5.22095599]
[1693653571429,0.74491959,1634.8,1634.7,5.22106167]
[1693653571673,0.74491959,1634.8,1634.7,6.18355856]
[1693653594696,0.74491959,1634.8,1634.7,5.22106167]
[1693653595623,0.74491959,1634.8,1634.7,6.18355856]
[1693653596897,0.74491959,1634.8,1634.7,6.18374776]
[1693653598692,0.74491959,1634.8,1634.7,5.54200392]
[1693653601744,0.74491959,1634.8,1634.7,6.82549161]
[1693653603408,0.74491959,1634.8,1634.7,6.8266356]
[1693653604733,0.74491959,1634.8,1634.7,5.86351912]
[1693653604939,0.74491959,1634.8,1634.7,6.82678429]
[1693653605109,0.74491959,1634.8,1634.7,5.86351912]
[1693653615568,0.74491959,1634.8,1634.7,3.51668693]
[1693653615768,0.74491959,1634.8,1634.7,5.86408987]
[1693653618536,0.74491959,1634.8,1634.7,6.18527303]
[1693653618856,0.48046415,1635.1,1634.7,6.18527303]
[1693653619058,1.8573,1635.1,1635.0,0.6423248]
[1693653619371,3.4093,1635.2,1635.0,0.6423248]
[1693653619543,0.00404428,1635.1,1635.0,0.6423248]
[1693653620475,3.4233,1635.2,1635.0,0.6423248]
[1693653621667,0.00404428,1635.1,1635.0,0.6423248]
[1693653622545,3.4233,1635.2,1635.0,0.6423248]
[1693653623607,0.00404428,1635.1,1635.0,0.6423248]
[1693653624450,3.4233,1635.2,1635.0,0.6423248]
[1693653625469,0.00404556,1635.1,1635.0,0.6423248]
[1693653626275,0.73201338,1635.1,1635.0,0.6423248]
[1693653626475,0.72796782,1635.1,1635.0,0.6423248]
[1693653626670,0.72796782,1635.1,1635.0,1.70499509]
[1693653626968,3.4233,1635.2,1635.0,0.6423248]
[1693653627550,0.00404428,1635.1,1635.0,0.6423248]
[1693653628478,3.4233,1635.2,1635.0,0.6423248]
[1693653629578,0.00404428,1635.1,1635.0,0.6423248]
[1693653630479,3.4233,1635.2,1635.0,0.6423248]
[1693653631180,3.4233,1635.2,1635.1,1.06267029]
[1693653631382,1.566,1635.2,1634.9,1.605812]
[1693653631696,0.00404428,1635.1,1634.9,5.75022453]
[1693653631843,0.00404428,1635.1,1635.0,1.06255849]
[1693653632479,3.3973,1635.2,1635.0,1.06255849]
[1693653633463,0.00532161,1635.1,1635.0,1.06255849]
[1693653634499,3.3973,1635.2,1635.0,1.06255849]
[1693653635458,0.00532161,1635.1,1635.0,1.06255849]
[1693653636393,3.3973,1635.2,1635.0,1.06255849]
[1693653637410,0.00532691,1635.1,1635.0,1.06255849]
[1693653638599,3.3973,1635.2,1635.0,1.06255849]
[1693653639531,0.00533073,1635.1,1635.0,1.06255849]
[1693653640036,0.00533073,1635.1,1635.0,1.0625602]
[1693653640631,3.3973,1635.2,1635.0,1.0625602]
[1693653641526,0.00532161,1635.1,1635.0,1.0625602]
[1693653642489,3.3973,1635.2,1635.0,1.0625602]
[1693653643094,0.73691782,1635.1,1635.0,1.0625602]
[1693653643428,0.00532161,1635.1,1635.0,1.0625602]
[1693653644541,3.3973,1635.2,1635.0,1.0625602]
[1693653645536,0.00532416,1635.1,1635.0,1.0625602]
[1693653646025,3.3973,1635.2,1635.1,0.00756684]
[1693653646442,3.40242716,1635.2,1635.1,0.00756684]
[1693653648955,1.57112716,1635.2,1635.1,3.08942088]
[1693653649157,1.57112716,1635.2,1635.1,4.46091476]
[1693653657729,2.27015427,1635.2,1635.1,4.46091476]
[1693653661251,2.27015427,1635.2,1635.1,4.15197267]
[1693653664362,2.27015427,1635.2,1635.1,4.79348799]
[1693653667071,2.27015427,1635.2,1635.1,1.71163395]
[1693653704140,2.27015427,1635.2,1635.1,4.79348799]
[1693653704319,0.70415427,1635.2,1635.1,5.43500331]
[1693653705002,0.70415427,1635.2,1635.1,6.39815584]
[1693653705197,0.70415427,1635.2,1635.1,5.43500331]
[1693653705402,0.00512716,1635.2,1635.1,7.03879161]
[1693653705603,1.566,1635.5,1635.1,5.75576097]
[1693653705787,1.566,1635.5,1635.3,0.64206935]
[1693653705982,1.566,1635.5,1635.3,1.70462114]
[1693653706283,0.72414377,1635.4,1635.3,1.70462114]
[1693653706486,2.29512687,1635.4,1635.3,1.70462114]
[1693653712735,2.29512687,1635.4,1635.3,1.06255179]
[1693653713027,2.29512687,1635.4,1635.3,1.70462114]
[1693653713229,2.29512687,1635.4,1635.3,1.06255179]
[1693653734901,2.28069687,1635.4,1635.3,1.06255179]
[1693653741860,2.28069687,1635.4,1635.3,1.70462114]
[1693653746102,2.28069687,1635.4,1635.3,2.66772517]
[1693653746290,2.28069687,1635.4,1635.3,1.70462114]
[1693653746818,2.28069687,1635.4,1635.3,2.66772517]
[1693653747515,0.71469687,1635.4,1635.3,5.74957921]
[1693653747669,0.71469687,1635.4,1635.3,6.39164857]
[1693653748701,0.71469687,1635.4,1635.3,5.42854454]
[1693653749907,0.71469687,1635.4,1635.3,7.03233284]
[1693653750400,0.0049831,1635.4,1635.3,7.03233284]
[1693653750607,2.0591081,1635.6,1635.3,7.03233284]
[1693653750774,2.0591081,1635.6,1635.5,0.64191474]
[1693653750972,2.0591081,1635.6,1635.5,1.70446653]
[1693653751282,2.78935547,1635.6,1635.5,1.70446653]
[1693653751482,2.79435413,1635.6,1635.5,1.70446653]
[1693653753598,2.0591081,1635.6,1635.5,1.70446653]
[1693653760315,2.0591081,1635.6,1635.5,4.78632057]
[1693653760814,2.0591081,1635.6,1635.5,5.74919268]
[1693653761315,0.4931081,1635.6,1635.5,5.74919268]
[1693653761548,1.566,1635.7,1635.5,5.74919268]
[1693653761726,1.566,1635.7,1635.6,1.06255179]
[1693653762122,2.27439331,1635.7,1635.6,1.06255179]
[1693653762528,2.27923717,1635.7,1635.6,1.06255179]
[1693653780305,2.27923717,1635.7,1635.6,1.70298171]
[1693653796236,2.27923717,1635.7,1635.6,5.74609936]
[1693653797627,2.27923717,1635.7,1635.6,5.10525696]
[1693653799124,2.27923717,1635.7,1635.6,6.38694177]
[1693653799855,2.27923717,1635.7,1635.6,5.10525696]
[1693653804349,2.27923717,1635.7,1635.6,2.02340292]
[1693653805012,2.27923717,1635.7,1635.6,0.96126361]
[1693653811426,2.27923717,1635.7,1635.6,5.32480246]
[1693653811760,2.27923717,1635.7,1635.6,5.42567816]
[1693653820576,2.27923717,1635.7,1635.6,3.30625894]
[1693653821060,2.27923717,1635.7,1635.6,2.24411963]
[1693653827293,2.27923717,1635.7,1635.6,1.70387541]
[1693653827591,2.69876089,1635.7,1635.6,0.6417361]
[1693653829292,2.69876089,1635.7,1635.5,1.60417092]
[1693653829497,1.566,1635.6,1635.5,1.60417092]
[1693653829693,2.16816193,1635.6,1635.5,1.60417092]
[1693653830499,2.17294764,1635.6,1635.5,1.60417092]
[1693653832696,2.17294764,1635.6,1635.5,2.66631023]
[1693653832861,2.17294764,1635.6,1635.5,2.02457413]
[1693653833396,2.17294764,1635.6,1635.5,0.96243482]
[1693653834399,1.57078571,1635.6,1635.5,0.96243482]
[1693653834694,2.17294764,1635.6,1635.5,1.60395991]
[1693653834894,2.17294764,1635.6,1635.5,0.96243482]
[1693653835095,1.57078571,1635.6,1635.5,2.02457413]
[1693653835306,1.57078571,1635.6,1635.5,0.96243482]
[1693653835603,1.566,1635.6,1635.5,0.96243482]
[1693653838977,1.566,1635.6,1635.5,1.60390751]
[1693653839697,1.566,1635.6,1635.5,2.66602462]
[1693653839894,1.566,1635.6,1635.5,1.60388531]
[1693653840406,1.566,1635.6,1635.5,2.02457413]
[1693653840808,1.566,1635.6,1635.5,0.96243482]
[1693653841015,2.36888257,1635.6,1635.5,0.96243482]
[1693653841415,2.37366828,1635.6,1635.5,0.96243482]
[1693653843308,2.37366828,1635.6,1635.5,1.60384306]
[1693653844315,2.37366828,1635.6,1635.5,0.96243482]
[1693653844518,2.37366828,1635.6,1635.5,2.02457413]
[1693653844815,2.37366828,1635.6,1635.5,0.96243482]
[1693653847546,2.37366828,1635.6,1635.5,1.60375463]
[1693653851795,2.37366828,1635.6,1635.5,2.66589394]
[1693653852034,2.37366828,1635.6,1635.5,1.60375463]
[1693653861418,2.36888257,1635.6,1635.5,2.02457413]
[1693653861623,1.566,1635.6,1635.5,0.96243482]
[1693653863824,1.566,1635.6,1635.5,4.04428886]
[1693653864000,1.566,1635.6,1635.5,5.10642817]
[1693653865349,1.566,1635.6,1635.5,6.38811298]
[1693653866645,1.566,1635.6,1635.5,6.03739433]
[1693653866825,1.566,1635.6,1635.5,7.63950034]
[1693653867026,1.566,1635.6,1635.5,6.03739433]
[1693653869248,1.566,1635.6,1635.5,7.63950034]
[1693653869449,1.566,1635.6,1635.5,6.03739433]
[1693653870217,1.566,1635.6,1635.5,7.63950034]
[1693653872856,1.566,1635.6,1635.5,7.64072627]
[1693653873264,1.566,1635.6,1635.5,6.35781553]
[1693653874748,1.566,1635.6,1635.5,7.64055644]
[1693653875137,1.566,1635.6,1635.5,6.35781553]
[1693653875467,1.566,1635.6,1635.5,7.64056387]
[1693653877761,1.566,1635.6,1635.5,6.03845786]
[1693653878536,1.566,1635.6,1635.5,6.35781553]
[1693653887071,1.566,1635.6,1635.5,9.35781553]
[1693653887244,0.43317799,1635.6,1635.5,7.75570952]
[1693653888471,0.43317799,1635.6,1635.5,9.35802012]
[1693653889078,0.43317799,1635.6,1635.5,7.75570952]
[1693653889546,0.43317799,1635.6,1635.5,9.35790093]
[1693653891279,1.566,1635.7,1635.6,3.0]
[1693653891474,1.566,1635.7,1635.6,8.42566914]
[1693653895784,1.566,1635.7,1635.6,9.03738531]
[1693653900888,1.566,1635.7,1635.6,6.69357021]
[1693653901191,1.566,1635.7,1635.6,9.0372159]
[1693653905499,1.566,1635.7,1635.6,10.63925784]
[1693653905895,1.566,1635.7,1635.6,9.0372159]
[1693653906191,1.566,1635.7,1635.6,10.63925784]
[1693653908498,1.566,1635.7,1635.6,9.35762429]
[1693653918501,0.92881168,1635.7,1635.6,9.35762429]
[1693653920421,0.92881168,1635.7,1635.6,7.75558235]
[1693653924817,0.92881168,1635.7,1635.6,2.66576368]
[1693653925026,0.92881168,1635.7,1635.6,2.34526802]
[1693653925220,0.92881168,1635.7,1635.6,1.28325588]
[1693653925419,0.92881168,1635.7,1635.6,2.34526802]
[1693653925801,0.92881168,1635.7,1635.6,1.28325588]
[1693653928311,0.92881168,1635.7,1635.6,2.24572248]
[1693653928509,0.92881168,1635.7,1635.6,2.24574479]
[1693653929529,0.92881168,1635.7,1635.6,3.30775693]
[1693653929723,0.92881168,1635.7,1635.6,2.24574479]
[1693653931035,0.92881168,1635.7,1635.6,2.02450105]
[1693653931527,0.92881168,1635.7,1635.6,0.96248891]
[1693653933341,0.92881168,1635.7,1635.6,2.02450105]
[1693653934219,0.92881168,1635.7,1635.6,0.96248891]
[1693653943325,0.92881168,1635.7,1635.6,1.57420508]
[1693653943545,0.92881168,1635.7,1635.6,2.63621722]
[1693653943749,0.92881168,1635.7,1635.6,3.86521722]
[1693653951377,0.92881168,1635.7,1635.6,3.86466211]
[1693653955186,2.012,1635.8,1635.7,0.30018832]
[1693653955350,3.96381,1635.8,1635.7,2.00352873]
[1693653955552,3.96951463,1635.8,1635.7,2.00352873]
[1693653955851,1.95751463,1635.8,1635.7,2.00352873]
[1693653957989,2.39273463,1635.8,1635.7,2.00352873]
[1693653963602,2.09254631,1635.8,1635.7,1.70334041]
[1693653966765,2.09254631,1635.8,1635.7,0.64123632]
[1693653966969,2.09254631,1635.8,1635.7,1.70334041]
[1693653967682,2.09254631,1635.8,1635.7,0.64123632]
[1693653967887,2.09254631,1635.8,1635.7,1.70334041]
[1693653968972,2.09254631,1635.8,1635.7,2.66518226]
[1693653969807,2.09254631,1635.8,1635.7,2.02394594]
[1693653971899,2.09254631,1635.8,1635.7,2.02528171]
[1693653973019,2.45684038,1635.8,1635.7,2.02528171]
[1693653974011,0.89084038,1635.8,1635.7,2.02528171]
[1693653982728,0.89084038,1635.8,1635.7,2.02539302]
[1693653989438,0.8052187,1635.8,1635.7,2.02539302]
[1693653997548,0.8052187,1635.8,1635.7,7.54666107]
[1693653997746,0.1754187,1635.8,1635.7,4.75569052]
[1693653997932,0.101,1636.2,1635.8,1.0734663]
[1693653998125,0.101,1636.2,1636.0,0.64152848]
[1693653998327,0.101,1636.2,1636.1,0.61171617]
[1693653998647,0.101,1636.2,1636.1,1.67383648]
[1693654001552,0.10590126,1636.2,1636.1,1.67383648]
[1693654002752,0.10590126,1636.2,1636.1,1.06212031]
[1693654003056,0.10590126,1636.2,1636.0,1.70364879]
[1693654003255,0.10590126,1636.2,1636.1,1.06212031]
[1693654003661,0.10590126,1636.2,1636.0,1.70364879]
[1693654003840,0.10590126,1636.2,1636.1,1.06212031]
[1693654004026,0.10590126,1636.2,1635.9,7.14309142]
[1693654004226,0.10590126,1636.2,1636.0,1.06191308]
[1693654005565,0.70654532,1636.1,1636.0,1.06191308]
[1693654006565,0.7114388,1636.1,1636.0,1.06191308]
[1693654008243,0.7114388,1636.1,1635.8,2.06557134]
[1693654008427,0.7114388,1636.1,1635.9,1.06197105]
[1693654008856,0.7114388,1636.1,1635.8,1.60382121]
[1693654009164,0.7114388,1636.1,1635.8,3.27750885]
[1693654009461,0.7114388,1636.1,1635.9,1.06197147]
[1693654010533,2.7929388,1636.1,1635.9,1.06197147]
[1693654011365,2.7929388,1636.1,1635.9,1.67368764]
[1693654011563,2.7929388,1636.1,1635.9,0.61171617]
[1693654012655,2.7929388,1636.1,1635.9,1.25324465]
[1693654012858,2.7929388,1636.1,1636.0,1.06196075]
[1693654016677,2.7929388,1636.1,1635.9,0.61171617]
[1693654021158,2.7929388,1636.1,1636.0,1.06194979]
[1693654022284,2.7929388,1636.1,1635.9,0.61171617]
[1693654024581,2.7929388,1636.1,1635.9,1.25324465]
[1693654024882,2.7929388,1636.1,1636.0,1.06195086]
[1693654039908,2.7929388,1636.1,1636.0,1.70347934]
[1693654040113,3.23893268,1636.1,1635.8,1.28305697]
[1693654040413,3.08185404,1635.9,1635.5,3.5197259]
[1693654040585,3.08185404,1635.9,1635.7,1.28232854]
[1693654040936,3.0,1635.6,1635.4,5.08552725]
[1693654041111,3.18594415,1635.5,1635.3,4.58618]
[1693654041408,3.18594415,1635.5,1635.2,4.58652]
[1693654041409,1.566,1635.4,1635.2,9.17295]
[1693654041612,1.566,1635.3,1635.2,9.17302]
[1693654041787,2.33125016,1635.3,1635.2,9.17302]
[1693654042108,8.49896132,1635.3,1635.2,9.17302]
[1693654042308,4.57064757,1635.4,1635.2,13.75961]
[1693654042509,0.00462926,1635.3,1635.2,13.75961]
[1693654043576,1.566,1635.4,1635.2,13.75961]
[1693654044505,0.00465054,1635.3,1635.2,13.75961]
[1693654045476,1.566,1635.4,1635.2,13.75961]
[1693654045682,4.01030561,1635.3,1635.1,4.59424684]